fUSD/lending_fUSD_20240826
["ID","MTS","AMOUNT","RATE_DAILY","PERIOD"]
[335975808,1724649039519,-750.4,0.00010999,2]
[335975810,1724649039529,-750.43419199,0.00010999,2]
[335975812,1724649039538,-500.0,0.00010999,2]
[335975814,1724649039547,-500.0,0.00010999,2]
[335975816,1724649039558,-500.0,0.00010999,2]
[335975818,1724649039568,-500.0,0.00010999,2]
[335975820,1724649039578,-500.0,0.00010999,2]
[335975822,1724649039587,-500.0,0.00010999,2]
[335975824,1724649039596,-500.0,0.00010999,2]
[335975826,1724649039605,-500.0,0.00010999,2]
[335975828,1724649039615,-500.0,0.00010999,2]
[335975830,1724649039623,-500.0,0.00010999,2]
[335975832,1724649039636,-615.58,0.00010999,2]
[335975834,1724649039646,-284.48,0.00010999,2]
[335975836,1724649039655,-500.0,0.00010999,2]
[335975838,1724649039664,-500.0,0.00010999,2]
[335975840,1724649039674,-500.0,0.00010999,2]
[335975842,1724649039683,-500.0,0.00010999,2]
[335975843,1724649039692,-500.0,0.00010999,2]
[335975845,1724649039702,-500.0,0.00010999,2]
[335975847,1724649039712,-500.0,0.00010999,2]
[335975849,1724649039721,-170.11827006,0.00010999,2]
[335975851,1724649039731,-500.0,0.00010999,2]
[335975853,1724649039740,-183.67278136,0.00010999,2]
[335975855,1724649039750,-500.0,0.00010999,2]
[335975857,1724649039759,-494.02,0.00010999,2]
[335975859,1724649039768,-500.0,0.00010999,2]
[335975861,1724649039782,-500.02776663,0.00010999,2]
[335975863,1724649039791,-500.0,0.00010999,2]
[335975865,1724649039801,-500.0,0.00010999,2]
[335975866,1724649039810,-500.0,0.00010999,2]
[335975868,1724649039820,-500.0,0.00010999,2]
[335975870,1724649039830,-500.0,0.00010999,2]
[335975872,1724649039839,-530.34,0.00010999,2]
[335975874,1724649039849,-500.0,0.00010999,2]
[335975876,1724649039859,-395.90902969,0.00010999,2]
[335975878,1724649039870,-500.0,0.00010999,2]
[335975880,1724649039879,-504.2001927,0.00010999,2]
[335975882,1724649039889,-507.30372541,0.00010999,2]
[335975884,1724649039898,-500.0,0.00010999,2]
[335975886,1724649039908,-352.98,0.00010999,2]
[335975888,1724649039917,-500.0,0.00010999,2]
[335975890,1724649039926,-500.0,0.00010999,2]
[335975892,1724649039936,-500.0,0.00010999,2]
[335975894,1724649039945,-500.0,0.00010999,2]
[335975896,1724649039954,-500.0,0.00010999,2]
[335975898,1724649039964,-500.0,0.00010999,2]
[335975900,1724649039974,-500.0,0.00010999,2]
[335975902,1724649039983,-500.0,0.00010999,2]
[335975903,1724649039992,-500.0,0.00010999,2]
[335975905,1724649040001,-500.0,0.00010999,2]
[335975907,1724649040011,-500.0,0.00010999,2]
[335975909,1724649040020,-500.0,0.00010999,2]
[335975911,1724649040029,-500.0,0.00010999,2]
[335975913,1724649040038,-500.0,0.00010999,2]
[335975914,1724649040048,-334.24267194,0.00010999,2]
[335975916,1724649040058,-693.0,0.00010999,2]
[335975918,1724649040067,-150.0,0.00011,2]
[335975920,1724649040076,-1258.0,0.00011,2]
[335975922,1724649040086,-1544.0,0.00011,2]
[335975924,1724649040095,-623.0,0.00011,2]
[335975926,1724649040104,-1923.0,0.00011,2]
[335975927,1724649040113,-1027.76,0.00011,2]
[335975929,1724649040122,-447.0,0.00011,2]
[335975931,1724649040131,-809.0,0.00011,2]
[335975933,1724649040140,-556.0,0.00011,2]
[335975935,1724649040149,-552.0,0.00011,2]
[335975937,1724649040159,-150.0,0.00011,2]
[335975939,1724649040168,-1897.0,0.00011,2]
[335975941,1724649040177,-1154.0,0.00011,2]
[335975942,1724649040186,-248.0,0.00011,2]
[335975944,1724649040196,-3320.0,0.00011,2]
[335975946,1724649040205,-764.0,0.00011,2]
[335975948,1724649040214,-895107.94178037,0.00011,2]
[335975950,1724649040224,-6740114.2295287,0.00011,2]
[335975965,1724649040369,-1590.380762,0.00011,2]
[335975972,1724649040431,-340.94643438,0.00011,2]
[335975974,1724649040443,-278.05758635,0.00011,2]
[335976171,1724649042651,-211.69803056,0.000109,2]
[335976173,1724649042661,-6476.12090944,0.00011,2]
[335976464,1724649045671,-150.0,0.0001074,2]
[335976466,1724649045683,-150.0,0.00010773,2]
[335976468,1724649045692,-160.1850454,0.00010786,2]
[335976470,1724649045701,-150.0,0.00010793,2]
[335976472,1724649045710,-150.0,0.00010808,2]
[335976474,1724649045719,-150.0,0.0001081,2]
[335976476,1724649045728,-150.0,0.00010811,2]
[335976478,1724649045737,-150.0,0.0001082,2]
[335976480,1724649045746,-150.0,0.00010825,2]
[335976481,1724649045755,-150.0,0.00010835,2]
[335976483,1724649045764,-150.0,0.00010839,2]
[335976486,1724649045776,-150.0,0.00010879,2]
[335976487,1724649045785,-150.0,0.00010885,2]
[335976489,1724649045795,-150.0,0.0001089,2]
[335976491,1724649045804,-150.0,0.0001094,2]
[335976493,1724649045814,-150.0,0.00010948,2]
[335976495,1724649045823,-150.0,0.0001095,2]
[335976497,1724649045832,-150.0,0.00010958,2]
[335976499,1724649045841,-150.0,0.00010962,2]
[335976501,1724649045850,-150.0,0.00010988,2]
[335976503,1724649045861,-5454.64641333,0.00011,2]
[335976505,1724649045873,-128517.09541289,0.00011,2]
[335976507,1724649045889,-2435.918,0.00011,2]
[335977938,1724649061811,331.97,8.219e-05,2]
[335978140,1724649064056,500.0,8.22e-05,2]
[335978197,1724649064595,500.0,8.22e-05,2]
[335978389,1724649066642,500.0,9.59e-05,2]
[335978783,1724649109010,500.0,8.22e-05,2]
[335978836,1724649182255,363.8,9.874e-05,2]
[335978977,1724649385872,1050.0,0.0001,2]
[335978980,1724649390484,413.6688324,9.874e-05,2]
[335978985,1724649396138,159.37,7.132e-05,2]
[335978988,1724649400510,1284.85822742,9.874e-05,2]
[335979001,1724649421119,155.0,0.00010009,2]
[335979007,1724649429125,1000.0,9.877e-05,2]
[335979010,1724649430240,286.21979955,9.874e-05,2]
[335979013,1724649438897,500.0,8.22e-05,2]
[335979015,1724649440343,291.88020449,9.874e-05,2]
[335979021,1724649449611,604.79063016,9.874e-05,2]
[335979035,1724649478860,500.0,8.22e-05,2]
[335979046,1724649506957,500.0,8.22e-05,2]
[335979053,1724649518020,159.26598381,9.874e-05,2]
[335979058,1724649529996,16254.4986388,9.874e-05,2]
[335979066,1724649545361,794.50771722,9.874e-05,2]
[335979070,1724649551349,355.44279272,9.874e-05,2]
[335979072,1724649555423,500.0,8.22e-05,2]
[335979073,1724649556270,3103.32244113,9.874e-05,2]
[335979079,1724649567632,343.13,8.219e-05,2]
[335979101,1724649622024,159.94751162,8.219e-05,2]
[335979102,1724649623592,500.0,8.22e-05,2]
[335979111,1724649650499,505.66846367,8.22e-05,2]
[335979113,1724649655403,792.05819084,8.22e-05,2]
[335979120,1724649676148,500.0,8.22e-05,2]
[335979121,1724649679224,181.6,9.867e-05,2]
[335979126,1724649695379,791.78892124,9.963e-05,2]
[335979133,1724649718223,500.0,8.22e-05,2]
[335979136,1724649732239,154.29,7.897e-05,2]
[335979143,1724649780428,250.0,9.871e-05,2]
[335979150,1724649824874,796.06780024,9.871e-05,2]
[335979162,1724649935879,791.65079818,9.871e-05,2]
[335979163,1724649935918,200.0,9.863e-05,2]
[335979167,1724649974756,500.0,8.22e-05,2]
[335979170,1724650012078,4672.83,9.864e-05,2]
[335979171,1724650033800,500.0,8.22e-05,2]
[335979172,1724650106473,500.0,8.22e-05,2]
[335979173,1724650112656,23900.0,9.859e-05,2]
[335979177,1724650141801,158.87,7.122e-05,2]
[335979178,1724650171159,1852.42,9.865e-05,2]
[335979179,1724650171978,2146.94259288,0.00010009,2]
[335979180,1724650182882,39788.57,9.865e-05,2]
[335979181,1724650188052,2146.94259288,0.00010009,2]
[335979192,1724650210468,181.6,9.863e-05,2]
[335979201,1724650231821,-629.45972681,0.00010026,2]
[335979202,1724650231992,-2009.04366656,0.000101,2]
[335979203,1724650232002,-115.79660663,0.00010449,2]
[335979206,1724650237838,-184.20339337,0.00010449,2]
[335979207,1724650237847,-1177.95107476,0.0001045,2]
[335979208,1724650237859,-5878.35106938,0.0001045,2]
[335979209,1724650237900,-2943.69785586,0.0001045,2]
[335979210,1724650237910,-343.13,0.00010469,2]
[335979211,1724650237919,-548.03894757,0.00010471,2]
[335979212,1724650237928,-958.62151183,0.0001052,2]
[335979213,1724650237937,-527.00294879,0.00010566,2]
[335979214,1724650237947,-526.83395276,0.00010713,2]
[335979215,1724650237958,-150.0,0.00010727,2]
[335979216,1724650237967,-150.0,0.00010727,2]
[335979217,1724650237977,-150.0,0.0001073,2]
[335979218,1724650237986,-150.0,0.00010732,2]
[335979219,1724650237996,-150.0,0.00010734,2]
[335979220,1724650238007,-150.0,0.00010736,2]
[335979221,1724650238016,-150.0,0.00010737,2]
[335979222,1724650238025,-150.0,0.00010738,2]
[335979223,1724650238034,-150.0,0.00010738,2]
[335979224,1724650238044,-150.0,0.00010743,2]
[335979225,1724650238053,-150.0,0.00010743,2]
[335979226,1724650238062,-150.0,0.00010747,2]
[335979227,1724650238072,-150.0,0.00010749,2]
[335979228,1724650238082,-150.0,0.00010752,2]
[335979229,1724650238091,-150.0,0.00010756,2]
[335979230,1724650238101,-150.0,0.00010759,2]
[335979231,1724650238111,-150.0,0.00010763,2]
[335979232,1724650238121,-150.0,0.00010767,2]
[335979233,1724650238132,-150.0,0.00010768,2]
[335979234,1724650238142,-150.0,0.00010773,2]
[335979235,1724650238152,-150.0,0.00010773,2]
[335979236,1724650238163,-150.0,0.00010774,2]
[335979237,1724650238173,-150.0,0.00010776,2]
[335979238,1724650238183,-3849.42,0.0001078,2]
[335979239,1724650238194,-150.0,0.00010781,2]
[335979241,1724650238204,-150.0,0.00010782,2]
[335979243,1724650238216,-150.0,0.00010782,2]
[335979246,1724650238227,-150.0,0.00010792,2]
[335979248,1724650238236,-150.0,0.00010795,2]
[335979250,1724650238246,-150.0,0.00010798,2]
[335979252,1724650238257,-155.0,0.00010799,2]
[335979254,1724650238266,-150.0,0.000108,2]
[335979256,1724650238275,-150.0,0.00010801,2]
[335979258,1724650238284,-150.0,0.00010806,2]
[335979260,1724650238293,-150.0,0.00010806,2]
[335979261,1724650238305,-150.0,0.00010809,2]
[335979262,1724650238315,-150.0,0.00010812,2]
[335979264,1724650238324,-150.0,0.00010815,2]
[335979266,1724650238333,-150.0,0.00010815,2]
[335979268,1724650238342,-150.0,0.00010819,2]
[335979270,1724650238354,-150.0,0.00010828,2]
[335979272,1724650238363,-150.0,0.00010828,2]
[335979274,1724650238371,-150.0,0.00010832,2]
[335979276,1724650238382,-150.0,0.00010839,2]
[335979278,1724650238391,-150.0,0.00010844,2]
[335979280,1724650238402,-150.0,0.00010853,2]
[335979282,1724650238411,-150.0,0.00010863,2]
[335979284,1724650238420,-150.0,0.0001087,2]
[335979286,1724650238430,-150.0,0.00010871,2]
[335979288,1724650238439,-150.0,0.00010874,2]
[335979290,1724650238448,-150.0,0.00010876,2]
[335979292,1724650238458,-150.0,0.00010877,2]
[335979294,1724650238466,-3728.0,0.00010886,2]
[335979296,1724650238476,-1923.0,0.00010886,2]
[335979298,1724650238485,-150.0,0.0001089,2]
[335979299,1724650238494,-1765.83088,0.0001089,2]
[335979301,1724650238503,-27855.8251,0.0001089,2]
[335979303,1724650238514,-150.0,0.00010895,2]
[335979305,1724650238523,-195.9682,0.00010899,2]
[335979307,1724650238533,-150.0,0.00010899,2]
[335979309,1724650238542,-465.9769,0.000109,2]
[335979311,1724650238551,-150.0,0.000109,2]
[335979313,1724650238560,-150.0,0.000109,2]
[335979315,1724650238569,-790.9,0.000109,2]
[335979317,1724650238579,-150.0,0.00010903,2]
[335979319,1724650238589,-150.0,0.00010905,2]
[335979322,1724650238598,-150.0,0.00010909,2]
[335979324,1724650238607,-150.0,0.0001091,2]
[335979326,1724650238617,-500.0,0.00010912,2]
[335979328,1724650238626,-150.0,0.00010914,2]
[335979330,1724650238635,-164.488,0.00010918,2]
[335979332,1724650238645,-150.0,0.00010923,2]
[335979334,1724650238654,-150.0,0.00010927,2]
[335979335,1724650238663,-150.0,0.00010928,2]
[335979337,1724650238672,-150.0,0.00010931,2]
[335979339,1724650238681,-150.0,0.00010932,2]
[335979341,1724650238690,-150.0,0.00010935,2]
[335979343,1724650238700,-150.0,0.0001094,2]
[335979345,1724650238709,-150.0,0.00010941,2]
[335979347,1724650238717,-150.0,0.00010941,2]
[335979349,1724650238726,-150.0,0.00010945,2]
[335979351,1724650238735,-150.0,0.00010948,2]
[335979353,1724650238744,-150.0,0.00010955,2]
[335979355,1724650238753,-150.0,0.00010958,2]
[335979357,1724650238765,-158.07,0.00010959,2]
[335979359,1724650238774,-153.34,0.00010959,2]
[335979361,1724650238783,-250.0,0.00010959,2]
[335979363,1724650238791,-782.78,0.00010959,2]
[335979365,1724650238801,-500.0,0.0001096,2]
[335979367,1724650238810,-500.0,0.0001096,2]
[335979369,1724650238819,-150.0,0.00010963,2]
[335979371,1724650238829,-150.0,0.00010967,2]
[335979373,1724650238838,-150.0,0.00010969,2]
[335979375,1724650238847,-150.0,0.00010971,2]
[335979377,1724650238857,-150.0,0.00010976,2]
[335979379,1724650238867,-150.0,0.00010981,2]
[335979381,1724650238876,-150.0,0.00010981,2]
[335979383,1724650238885,-19461.46964382,0.0001099,3]
[335979387,1724650238910,-5610.72,0.0001099,3]
[335979389,1724650238921,-4778.01616488,0.0001099,3]
[335979392,1724650238935,-39244.32256767,0.0001099,3]
[335979394,1724650238945,-150.0,0.00010991,2]
[335979396,1724650238954,-500.0,0.00010991,2]
[335979398,1724650238963,-680.3,0.00010991,2]
[335979400,1724650238972,-500.0,0.00010991,2]
[335979402,1724650238981,-500.0,0.00010991,2]
[335979404,1724650238990,-500.0,0.00010991,2]
[335979405,1724650238999,-640.3,0.00010991,2]
[335979407,1724650239011,-502.32,0.00010991,2]
[335979410,1724650239024,-255.202,0.00010991,2]
[335979412,1724650239033,-500.0,0.00010991,2]
[335979414,1724650239042,-500.0,0.00010991,2]
[335979415,1724650239051,-630.70531713,0.00010991,2]
[335979417,1724650239060,-500.0,0.00010991,2]
[335979419,1724650239070,-500.0,0.00010991,2]
[335979421,1724650239079,-500.0,0.00010991,2]
[335979423,1724650239089,-521.5473007,0.00010991,2]
[335979425,1724650239098,-500.0,0.00010991,2]
[335979427,1724650239107,-537.62310238,0.00010991,2]
[335979429,1724650239117,-557.84756439,0.00010991,2]
[335979431,1724650239126,-534.13107181,0.00010991,2]
[335979433,1724650239135,-568.95540268,0.00010991,2]
[335979435,1724650239145,-500.0,0.00010991,2]
[335979437,1724650239154,-500.0,0.00010991,2]
[335979439,1724650239162,-543.98973975,0.00010991,2]
[335979441,1724650239171,-24036.4106885,0.00010992,2]
[335979443,1724650239181,-23024.0099685,0.00010992,2]
[335979445,1724650239190,-22011.6092485,0.00010992,2]
[335979447,1724650239199,-20999.2085285,0.00010992,2]
[335979449,1724650239207,-19986.8078085,0.00010992,2]
[335979451,1724650239217,-8460.4099274,0.00010992,2]
[335979453,1724650239226,-7103.4547507,0.00010992,2]
[335979455,1724650239235,-5746.499574,0.00010992,2]
[335979457,1724650239244,-4389.5443973,0.00010992,2]
[335979459,1724650239253,-3032.5892206,0.00010992,2]
[335979461,1724650239264,-2581.8258977,0.00010992,2]
[335979463,1724650239273,-2167.729885,0.00010992,2]
[335979465,1724650239282,-1753.6338722,0.00010992,2]
[335979467,1724650239291,-1339.5378594,0.00010992,2]
[335979469,1724650239300,-925.4418467,0.00010992,2]
[335979471,1724650239313,-179.40128548,0.00010997,2]
[335979473,1724650239323,-500.0,0.00010998,2]
[335979475,1724650239332,-500.0,0.00010998,2]
[335979477,1724650239341,-285.37167589,0.00010998,2]
[335979479,1724650239352,-500.0,0.00010998,2]
[335979481,1724650239362,-1194.04088156,0.00010999,3]
[335979483,1724650239371,-500.0,0.00010999,2]
[335979485,1724650239382,-283.18682102,0.00010999,2]
[335979487,1724650239391,-500.0,0.00010999,2]
[335979489,1724650239401,-500.0,0.00010999,2]
[335979491,1724650239409,-500.0,0.00010999,2]
[335979493,1724650239419,-500.0,0.00010999,2]
[335979495,1724650239428,-500.0,0.00010999,2]
[335979497,1724650239437,-500.0,0.00010999,2]
[335979499,1724650239446,-500.0,0.00010999,2]
[335979501,1724650239455,-500.0,0.00010999,2]
[335979503,1724650239464,-500.0,0.00010999,2]
[335979505,1724650239473,-500.0,0.00010999,2]
[335979507,1724650239482,-500.0,0.00010999,2]
[335979509,1724650239491,-500.0,0.00010999,2]
[335979511,1724650239500,-680.3,0.00010999,2]
[335979513,1724650239513,-680.3,0.00010999,2]
[335979514,1724650239522,-680.3,0.00010999,2]
[335979516,1724650239532,-680.3,0.00010999,2]
[335979518,1724650239541,-680.3,0.00010999,2]
[335979520,1724650239550,-680.3,0.00010999,2]
[335979522,1724650239560,-680.3,0.00010999,2]
[335979524,1724650239569,-680.3,0.00010999,2]
[335979526,1724650239578,-680.3,0.00010999,2]
[335979528,1724650239588,-680.3,0.00010999,2]
[335979530,1724650239597,-680.3,0.00010999,2]
[335979532,1724650239607,-680.3,0.00010999,2]
[335979534,1724650239616,-680.3,0.00010999,2]
[335979536,1724650239625,-680.3,0.00010999,2]
[335979538,1724650239635,-680.3,0.00010999,2]
[335979540,1724650239645,-680.3,0.00010999,2]
[335979542,1724650239654,-680.3,0.00010999,2]
[335979544,1724650239664,-680.3,0.00010999,2]
[335979546,1724650239673,-680.3,0.00010999,2]
[335979548,1724650239682,-680.3,0.00010999,2]
[335979550,1724650239691,-680.3,0.00010999,2]
[335979552,1724650239700,-680.3,0.00010999,2]
[335979554,1724650239709,-680.32,0.00010999,2]
[335979556,1724650239718,-500.0,0.00010999,2]
[335979558,1724650239728,-500.0,0.00010999,2]
[335979560,1724650239737,-500.0,0.00010999,2]
[335979563,1724650239746,-500.0,0.00010999,2]
[335979565,1724650239756,-500.0,0.00010999,2]
[335979567,1724650239766,-500.0,0.00010999,2]
[335979569,1724650239775,-500.0,0.00010999,2]
[335979572,1724650239784,-500.0,0.00010999,2]
[335979574,1724650239793,-500.0,0.00010999,2]
[335979576,1724650239803,-500.0,0.00010999,2]
[335979578,1724650239812,-500.0,0.00010999,2]
[335979580,1724650239821,-500.0,0.00010999,2]
[335979582,1724650239830,-500.0,0.00010999,2]
[335979584,1724650239839,-500.0,0.00010999,2]
[335979586,1724650239848,-500.0,0.00010999,2]
[335979587,1724650239858,-500.0,0.00010999,2]
[335979590,1724650239867,-500.0,0.00010999,2]
[335979592,1724650239876,-500.0,0.00010999,2]
[335979593,1724650239885,-500.0,0.00010999,2]
[335979596,1724650239895,-500.0,0.00010999,2]
[335979597,1724650239904,-500.0,0.00010999,2]
[335979598,1724650239913,-500.0,0.00010999,2]
[335979599,1724650239923,-500.0,0.00010999,2]
[335979600,1724650239932,-500.0,0.00010999,2]
[335979601,1724650239941,-500.0,0.00010999,2]
[335979602,1724650239952,-500.0,0.00010999,2]
[335979603,1724650239963,-500.0,0.00010999,2]
[335979604,1724650239974,-500.0,0.00010999,2]
[335979605,1724650239985,-500.0,0.00010999,2]
[335979606,1724650239994,-640.3,0.00010999,2]
[335979607,1724650240004,-640.3,0.00010999,2]
[335979608,1724650240014,-500.0,0.00010999,2]
[335979609,1724650240023,-640.3,0.00010999,2]
[335979610,1724650240032,-500.0,0.00010999,2]
[335979611,1724650240041,-640.3,0.00010999,2]
[335979612,1724650240050,-500.0,0.00010999,2]
[335979613,1724650240059,-640.3,0.00010999,2]
[335979614,1724650240070,-500.0,0.00010999,2]
[335979615,1724650240079,-640.3,0.00010999,2]
[335979616,1724650240091,-233.11,0.00010999,2]
[335979617,1724650240102,-640.3,0.00010999,2]
[335979619,1724650240112,-640.3,0.00010999,2]
[335979621,1724650240122,-640.3,0.00010999,2]
[335979623,1724650240133,-640.3,0.00010999,2]
[335979626,1724650240144,-640.3,0.00010999,2]
[335979628,1724650240153,-640.3,0.00010999,2]
[335979630,1724650240164,-640.3,0.00010999,2]
[335979632,1724650240174,-640.3,0.00010999,2]
[335979634,1724650240184,-640.3,0.00010999,2]
[335979636,1724650240195,-502.32,0.00010999,2]
[335979638,1724650240205,-640.3,0.00010999,2]
[335979641,1724650240215,-502.32,0.00010999,2]
[335979643,1724650240224,-640.3,0.00010999,2]
[335979645,1724650240233,-502.32,0.00010999,2]
[335979647,1724650240243,-640.3,0.00010999,2]
[335979649,1724650240253,-502.32,0.00010999,2]
[335979651,1724650240263,-502.32,0.00010999,2]
[335979653,1724650240272,-640.3,0.00010999,2]
[335979655,1724650240281,-640.3,0.00010999,2]
[335979657,1724650240290,-502.32,0.00010999,2]
[335979659,1724650240299,-640.3,0.00010999,2]
[335979661,1724650240312,-502.32,0.00010999,2]
[335979663,1724650240322,-640.3,0.00010999,2]
[335979664,1724650240331,-502.32,0.00010999,2]
[335979667,1724650240340,-640.3,0.00010999,2]
[335979669,1724650240350,-502.32,0.00010999,2]
[335979671,1724650240359,-502.32,0.00010999,2]
[335979673,1724650240368,-502.32,0.00010999,2]
[335979675,1724650240379,-502.32,0.00010999,2]
[335979677,1724650240388,-502.32,0.00010999,2]
[335979679,1724650240397,-502.32,0.00010999,2]
[335979681,1724650240406,-502.32,0.00010999,2]
[335979683,1724650240415,-502.32,0.00010999,2]
[335979684,1724650240424,-502.32,0.00010999,2]
[335979686,1724650240434,-502.32,0.00010999,2]
[335979688,1724650240443,-502.32,0.00010999,2]
[335979690,1724650240452,-502.32,0.00010999,2]
[335979692,1724650240461,-502.32,0.00010999,2]
[335979694,1724650240471,-502.32,0.00010999,2]
[335979696,1724650240479,-502.39,0.00010999,2]
[335979698,1724650240489,-571.72064936,0.00010999,2]
[335979700,1724650240498,-500.0,0.00010999,2]
[335979702,1724650240508,-500.0,0.00010999,2]
[335979704,1724650240517,-500.0,0.00010999,2]
[335979706,1724650240527,-500.0,0.00010999,2]
[335979708,1724650240536,-500.0,0.00010999,2]
[335979710,1724650240545,-500.0,0.00010999,2]
[335979712,1724650240554,-500.0,0.00010999,2]
[335979714,1724650240564,-500.0,0.00010999,2]
[335979716,1724650240573,-500.0,0.00010999,2]
[335979718,1724650240582,-500.0,0.00010999,2]
[335979720,1724650240591,-500.0,0.00010999,2]
[335979722,1724650240601,-500.0,0.00010999,2]
[335979724,1724650240610,-292.2,0.00010999,2]
[335979726,1724650240620,-500.0,0.00010999,2]
[335979728,1724650240629,-500.0,0.00010999,2]
[335979730,1724650240638,-500.0,0.00010999,2]
[335979732,1724650240647,-500.0,0.00010999,2]
[335979734,1724650240656,-500.0,0.00010999,2]
[335979736,1724650240665,-500.0,0.00010999,2]
[335979738,1724650240674,-500.0,0.00010999,2]
[335979740,1724650240684,-500.0,0.00010999,2]
[335979742,1724650240693,-500.0,0.00010999,2]
[335979744,1724650240702,-500.0,0.00010999,2]
[335979746,1724650240711,-500.0,0.00010999,2]
[335979748,1724650240719,-500.0,0.00010999,2]
[335979750,1724650240729,-500.0,0.00010999,2]
[335979752,1724650240738,-500.0,0.00010999,2]
[335979754,1724650240747,-590.35,0.00010999,2]
[335979756,1724650240757,-500.0,0.00010999,2]
[335979758,1724650240766,-190.6755443,0.00010999,2]
[335979760,1724650240775,-500.0,0.00010999,2]
[335979762,1724650240784,-500.0,0.00010999,2]
[335979764,1724650240793,-500.0,0.00010999,2]
[335979766,1724650240802,-500.0,0.00010999,2]
[335979768,1724650240811,-500.0,0.00010999,2]
[335979770,1724650240820,-500.0,0.00010999,2]
[335979772,1724650240829,-500.0,0.00010999,2]
[335979774,1724650240838,-340.77,0.00010999,2]
[335979776,1724650240847,-500.0,0.00010999,2]
[335979778,1724650240856,-500.0,0.00010999,2]
[335979780,1724650240865,-500.0,0.00010999,2]
[335979782,1724650240874,-500.0,0.00010999,2]
[335979784,1724650240883,-500.0,0.00010999,2]
[335979786,1724650240892,-500.0,0.00010999,2]
[335979788,1724650240901,-500.0,0.00010999,2]
[335979790,1724650240911,-500.0,0.00010999,2]
[335979792,1724650240920,-500.0,0.00010999,2]
[335979794,1724650240930,-521.7838848,0.00010999,2]
[335979796,1724650240939,-386.31433588,0.00010999,2]
[335979798,1724650240948,-484.06871167,0.00010999,2]
[335979800,1724650240958,-810.0,0.00011,2]
[335979802,1724650240968,-1897.0,0.00011,2]
[335979804,1724650240977,-552.0,0.00011,2]
[335979806,1724650240986,-150.0,0.00011,2]
[335979808,1724650240996,-1186.531,0.00011,2]
[335979810,1724650241005,-764.0,0.00011,2]
[335979812,1724650241015,-1077.0,0.00011,2]
[335979814,1724650241024,-1258.0,0.00011,2]
[335979816,1724650241033,-623.0,0.00011,2]
[335979818,1724650241042,-1544.0,0.00011,2]
[335979820,1724650241051,-5847.0,0.00011,2]
[335979822,1724650241060,-289.0,0.00011,2]
[335979824,1724650241070,-691.0,0.00011,2]
[335979826,1724650241079,-486732.90182539,0.00011,2]
[335979828,1724650241088,-3041266.86706703,0.00011,2]
[335979856,1724650241350,-1460474.15507991,0.00011,2]
[335979858,1724650241362,-1094168.86403087,0.00011,2]
[335979861,1724650241375,-11373.65825678,0.00011,2]
[335979888,1724650241617,-392.88321767,0.00011,2]
[335979890,1724650241628,-3058.97489735,0.00011,2]
[335979892,1724650241640,-16040.5,0.00011,2]
[335979895,1724650241650,-639.318,0.00011,2]